[Event "*** Titled Tuesday Blitz"]
[Site "Chess.com"]
[Date "2021.03.02"]
[Round "11"]
[White "TigrVShlyape"]
[Black "ZiggyStardust64"]
[Result "1-0"]
[WhiteElo "2890"]
[BlackElo "2625"]
[TimeControl "180+1"]
[EndTime "12:08:27 PST"]
[Termination "TigrVShlyape won by resignation"]

1. e4 {[%clk 0:03:00.9]} 1... c6 {[%clk 0:02:56.6]} 2. d4 {[%clk 0:02:57.2]}
2... d5 {[%clk 0:02:55.9]} 3. exd5 {[%clk 0:02:57.5]} 3... cxd5 {[%clk
0:02:56.2]} 4. Bd3 {[%clk 0:02:58]} 4... Nf6 {[%clk 0:02:56.8]} 5. c3 {[%clk
0:02:57.5]} 5... Bg4 {[%clk 0:02:57.3]} 6. Nf3 {[%clk 0:02:51.4]} 6... e6 {[%clk
0:02:56.1]} 7. Bf4 {[%clk 0:02:48.7]} 7... Bd6 {[%clk 0:02:53.2]} 8. Bxd6 {[%clk
0:02:46.7]} 8... Qxd6 {[%clk 0:02:54.1]} 9. Nbd2 {[%clk 0:02:46.8]} 9... O-O
{[%clk 0:02:53.7]} 10. O-O {[%clk 0:02:46.1]} 10... Nc6 {[%clk 0:02:50.5]} 11.
Re1 {[%clk 0:02:45.7]} 11... Rab8 {[%clk 0:02:47.9]} 12. a4 {[%clk 0:02:45]}
12... a6 {[%clk 0:02:47.4]} 13. a5 {[%clk 0:02:44.9]} 13... Rfe8 {[%clk
0:02:46.4]} 14. Qa4 {[%clk 0:02:42.8]} 14... Bxf3 {[%clk 0:02:35.4]} 15. Nxf3
{[%clk 0:02:42]} 15... e5 {[%clk 0:02:36.3]} 16. dxe5 {[%clk 0:02:41.4]} 16...
Nxe5 {[%clk 0:02:36.6]} 17. Nxe5 {[%clk 0:02:37.5]} 17... Rxe5 {[%clk
0:02:37.5]} 18. Qd4 {[%clk 0:02:32.1]} 18... Rbe8 {[%clk 0:02:33.6]} 19. Rxe5
{[%clk 0:02:31.2]} 19... Qxe5 {[%clk 0:02:28.7]} 20. Qxe5 {[%clk 0:02:27.2]}
20... Rxe5 {[%clk 0:02:29.6]} 21. f3 {[%clk 0:02:19.8]} 21... Kf8 {[%clk
0:02:13.8]} 22. Kf2 {[%clk 0:02:18.8]} 22... g5 {[%clk 0:02:08.1]} 23. Ra4
{[%clk 0:02:17.1]} 23... Re7 {[%clk 0:02:00]} 24. h4 {[%clk 0:02:10.9]} 24... h6
{[%clk 0:01:59.5]} 25. Rb4 {[%clk 0:02:10.4]} 25... Rd7 {[%clk 0:01:59.3]} 26.
g3 {[%clk 0:02:03.6]} 26... Kg7 {[%clk 0:01:58.8]} 27. Bf5 {[%clk 0:01:58.2]}
27... Rc7 {[%clk 0:01:55.3]} 28. Rb6 {[%clk 0:01:52.6]} 28... Ne8 {[%clk
0:01:53.1]} 29. h5 {[%clk 0:01:49.6]} 29... Rc5 {[%clk 0:01:18]} 30. Rxb7 {[%clk
0:01:47.3]} 30... Nd6 {[%clk 0:01:18]} 31. Rb6 {[%clk 0:01:36.4]} 31... Nxf5
{[%clk 0:01:18]} 32. g4 {[%clk 0:01:29.8]} 32... Ne7 {[%clk 0:01:07.1]} 33. Rxa6
{[%clk 0:01:29.5]} 33... Rb5 {[%clk 0:01:07.2]} 34. b4 {[%clk 0:01:24.5]} 34...
d4 {[%clk 0:01:07.2]} 35. Rb6 {[%clk 0:01:17.8]} 35... Rxb6 {[%clk 0:00:50.6]}
36. axb6 {[%clk 0:01:17.7]} 36... dxc3 {[%clk 0:00:51.1]} 37. Ke2 {[%clk
0:01:16.8]} 37... Kf6 {[%clk 0:00:41]} 38. b5 {[%clk 0:01:11.8]} 38... c2 {[%clk
0:00:05.4]} 39. Kd2 {[%clk 0:01:11.4]} 39... Nc6 {[%clk 0:00:04.3]} 40. bxc6
{[%clk 0:01:10.9]} 1-0

[Event "*** Titled Tuesday Blitz"]
[Site "Chess.com"]
[Date "2021.03.02"]
[Round "11"]
[White "manipun1"]
[Black "mhebden"]
[Result "0-1"]
[WhiteElo "2251"]
[BlackElo "2515"]
[TimeControl "180+1"]
[EndTime "12:08:30 PST"]
[Termination "mhebden won on time"]

1. c4 {[%clk 0:03:00.9]} 1... g6 {[%clk 0:02:59.2]} 2. Nc3 {[%clk 0:02:59.3]}
2... Bg7 {[%clk 0:02:59.5]} 3. g3 {[%clk 0:03:00]} 3... Nf6 {[%clk 0:02:58.9]}
4. Bg2 {[%clk 0:03:00.3]} 4... O-O {[%clk 0:02:59.4]} 5. d3 {[%clk 0:02:59.7]}
5... e6 {[%clk 0:02:58.7]} 6. e4 {[%clk 0:02:57.3]} 6... d5 {[%clk 0:02:58.5]}
7. cxd5 {[%clk 0:02:53.1]} 7... exd5 {[%clk 0:02:58.2]} 8. e5 {[%clk 0:02:39.4]}
8... Nfd7 {[%clk 0:02:56.3]} 9. d4 {[%clk 0:02:37.8]} 9... c5 {[%clk 0:02:56.1]}
10. f4 {[%clk 0:02:29.7]} 10... cxd4 {[%clk 0:02:54.9]} 11. Nxd5 {[%clk
0:02:27.9]} 11... Nc6 {[%clk 0:02:52.8]} 12. Ne2 {[%clk 0:02:25.7]} 12... f6
{[%clk 0:02:44.4]} 13. Nxd4 {[%clk 0:02:10.2]} 13... Nxd4 {[%clk 0:02:39.2]} 14.
Qxd4 {[%clk 0:02:09.3]} 14... fxe5 {[%clk 0:02:39.3]} 15. Qc4 {[%clk 0:02:05.9]}
15... Kh8 {[%clk 0:02:38.5]} 16. O-O {[%clk 0:02:05.2]} 16... Nb6 {[%clk
0:02:37.5]} 17. Nxb6 {[%clk 0:01:57.7]} 17... Qxb6+ {[%clk 0:02:37.2]} 18. Kh1
{[%clk 0:01:58.2]} 18... Be6 {[%clk 0:02:34.6]} 19. Qe4 {[%clk 0:01:51.8]} 19...
Rad8 {[%clk 0:02:21.2]} 20. Qxb7 {[%clk 0:01:41.6]} 20... Qc5 {[%clk 0:02:14.3]}
21. Qc6 {[%clk 0:01:32.6]} 21... Qxc6 {[%clk 0:02:09.6]} 22. Bxc6 {[%clk
0:01:31.5]} 22... Rc8 {[%clk 0:01:50.1]} 23. Bg2 {[%clk 0:01:11.7]} 23... exf4
{[%clk 0:01:39.8]} 24. Bxf4 {[%clk 0:01:01]} 24... Bxb2 {[%clk 0:01:39]} 25.
Rab1 {[%clk 0:00:53.5]} 25... Bd4 {[%clk 0:01:38.1]} 26. a4 {[%clk 0:00:42.4]}
26... Bf5 {[%clk 0:01:24]} 27. Rbd1 {[%clk 0:00:40.3]} 27... Bg7 {[%clk
0:01:21.3]} 28. h3 {[%clk 0:00:36]} 28... h5 {[%clk 0:01:20.4]} 29. Rd2 {[%clk
0:00:25.9]} 29... Rc4 {[%clk 0:01:19.5]} 30. a5 {[%clk 0:00:18.2]} 30... Ra4
{[%clk 0:01:16.7]} 31. Rd5 {[%clk 0:00:13.9]} 31... Rc8 {[%clk 0:01:07.2]} 32.
Be5 {[%clk 0:00:10.2]} 32... Rc2 {[%clk 0:01:01.9]} 33. Bxg7+ {[%clk 0:00:07.7]}
33... Kxg7 {[%clk 0:01:01.8]} 34. Re1 {[%clk 0:00:03.5]} 34... Raa2 {[%clk
0:00:59]} 0-1

[Event "*** Titled Tuesday Blitz"]
[Site "Chess.com"]
[Date "2021.03.02"]
[Round "11"]
[White "azikom"]
[Black "Tekushka"]
[Result "1/2-1/2"]
[WhiteElo "2646"]
[BlackElo "2440"]
[TimeControl "180+1"]
[EndTime "12:08:33 PST"]
[Termination "Game drawn by repetition"]

1. d4 {[%clk 0:03:00.9]} 1... Nf6 {[%clk 0:02:59.2]} 2. Nf3 {[%clk 0:03:00.1]}
2... d5 {[%clk 0:02:58.1]} 3. Bf4 {[%clk 0:02:59.6]} 3... c5 {[%clk 0:02:57.1]}
4. e3 {[%clk 0:02:58.9]} 4... Nc6 {[%clk 0:02:56.9]} 5. c3 {[%clk 0:02:58.9]}
5... Qb6 {[%clk 0:02:55]} 6. Qb3 {[%clk 0:02:59.5]} 6... c4 {[%clk 0:02:52.8]}
7. Qc2 {[%clk 0:03:00]} 7... Bf5 {[%clk 0:02:51.3]} 8. Qc1 {[%clk 0:03:00.4]}
8... e6 {[%clk 0:02:46.7]} 9. Nbd2 {[%clk 0:03:00.4]} 9... Qd8 {[%clk
0:02:37.8]} 10. Be2 {[%clk 0:02:58.4]} 10... h6 {[%clk 0:02:37.3]} 11. O-O
{[%clk 0:02:58.7]} 11... Be7 {[%clk 0:02:37.2]} 12. Bd1 {[%clk 0:02:58.4]} 12...
O-O {[%clk 0:02:33.1]} 13. Bc2 {[%clk 0:02:57.9]} 13... Bd6 {[%clk 0:02:08.4]}
14. Bg3 {[%clk 0:02:52.4]} 14... Bxg3 {[%clk 0:02:05.4]} 15. hxg3 {[%clk
0:02:51.9]} 15... b5 {[%clk 0:01:25.2]} 16. Re1 {[%clk 0:02:51.4]} 16... a5
{[%clk 0:01:18]} 17. e4 {[%clk 0:02:51.1]} 17... dxe4 {[%clk 0:01:08]} 18. Nxe4
{[%clk 0:02:50.7]} 18... Nxe4 {[%clk 0:01:07.5]} 19. Bxe4 {[%clk 0:02:50.4]}
19... Bxe4 {[%clk 0:01:07.8]} 20. Rxe4 {[%clk 0:02:50.9]} 20... Qd5 {[%clk
0:01:08.1]} 21. Re3 {[%clk 0:02:45.1]} 21... b4 {[%clk 0:01:06.5]} 22. Ne5
{[%clk 0:02:44.7]} 22... Rfc8 {[%clk 0:01:01.4]} 23. Nxc6 {[%clk 0:02:42.7]}
23... Rxc6 {[%clk 0:01:01.5]} 24. Re5 {[%clk 0:02:42.6]} 24... Qd6 {[%clk
0:01:00]} 25. Qe3 {[%clk 0:02:38.4]} 25... a4 {[%clk 0:00:55.9]} 26. a3 {[%clk
0:02:32.4]} 26... bxc3 {[%clk 0:00:52.1]} 27. bxc3 {[%clk 0:02:32.4]} 27... Rb8
{[%clk 0:00:47.1]} 28. Qe4 {[%clk 0:02:30.4]} 28... Rb3 {[%clk 0:00:44.4]} 29.
d5 {[%clk 0:02:29.7]} 29... Rc5 {[%clk 0:00:43.3]} 30. Rd1 {[%clk 0:02:19.2]}
30... Rxc3 {[%clk 0:00:38.3]} 31. Kh2 {[%clk 0:02:12]} 31... Rd3 {[%clk
0:00:35.9]} 32. Rb1 {[%clk 0:01:24.9]} 32... Rcxd5 {[%clk 0:00:30.3]} 33. Rxd5
{[%clk 0:01:20.5]} 33... exd5 {[%clk 0:00:22.1]} 34. Qe8+ {[%clk 0:01:20]} 34...
Qf8 {[%clk 0:00:20.6]} 35. Qxa4 {[%clk 0:01:19.5]} 35... Rxa3 {[%clk 0:00:18.9]}
36. Qd7 {[%clk 0:01:19.1]} 36... Rb3 {[%clk 0:00:17.2]} 37. Rd1 {[%clk
0:01:15.2]} 37... Rd3 {[%clk 0:00:17.1]} 38. Rb1 {[%clk 0:01:02.1]} 38... Rb3
{[%clk 0:00:16.6]} 39. Rd1 {[%clk 0:01:01.6]} 39... Rd3 {[%clk 0:00:16.8]} 40.
Rb1 {[%clk 0:01:01.3]} 40... Rb3 {[%clk 0:00:16.9]} 1/2-1/2

[Event "*** Titled Tuesday Blitz"]
[Site "Chess.com"]
[Date "2021.03.02"]
[Round "11"]
[White "turayev_shahruh17"]
[Black "pavelalexandru07"]
[Result "1-0"]
[WhiteElo "2458"]
[BlackElo "2295"]
[TimeControl "180+1"]
[EndTime "12:08:33 PST"]
[Termination "turayev_shahruh17 won by resignation"]

1. e4 {[%clk 0:02:30.2]} 1... c5 {[%clk 0:03:00]} 2. Nc3 {[%clk 0:02:29.7]} 2...
e6 {[%clk 0:02:52.6]} 3. g3 {[%clk 0:02:25.5]} 3... a6 {[%clk 0:02:52.2]} 4. Bg2
{[%clk 0:02:15.1]} 4... Nc6 {[%clk 0:02:50.9]} 5. d3 {[%clk 0:02:14.8]} 5... g6
{[%clk 0:02:50.9]} 6. f4 {[%clk 0:02:14.2]} 6... Bg7 {[%clk 0:02:48.7]} 7. Nh3
{[%clk 0:02:14.7]} 7... Nge7 {[%clk 0:02:42.3]} 8. O-O {[%clk 0:02:12.2]} 8...
O-O {[%clk 0:02:40]} 9. g4 {[%clk 0:02:12.6]} 9... f5 {[%clk 0:02:31.8]} 10.
gxf5 {[%clk 0:02:13.5]} 10... gxf5 {[%clk 0:02:29.8]} 11. Qh5 {[%clk 0:02:12.1]}
11... Qe8 {[%clk 0:02:21.6]} 12. Qh4 {[%clk 0:02:10.6]} 12... Nd4 {[%clk
0:02:10.6]} 13. Bf3 {[%clk 0:01:59.1]} 13... Ng6 {[%clk 0:01:36.4]} 14. Qh5
{[%clk 0:01:57.7]} 14... Ne7 {[%clk 0:01:27.5]} 15. Qh4 {[%clk 0:01:56.7]} 15...
Ng6 {[%clk 0:01:10]} 16. Qg3 {[%clk 0:01:55.6]} 16... Bh6 {[%clk 0:01:02.4]} 17.
Bh5 {[%clk 0:01:51.2]} 17... Kh8 {[%clk 0:01:01.8]} 18. Kh1 {[%clk 0:01:49]}
18... Rg8 {[%clk 0:01:01.4]} 19. Rg1 {[%clk 0:01:48.3]} 19... d6 {[%clk
0:00:47.3]} 20. Bd2 {[%clk 0:01:37.1]} 20... Bd7 {[%clk 0:00:44]} 21. Rg2 {[%clk
0:01:30.7]} 21... Qe7 {[%clk 0:00:39.1]} 22. Qf2 {[%clk 0:01:22]} 22... Be8
{[%clk 0:00:33.5]} 23. Rag1 {[%clk 0:01:21.1]} 23... Bf7 {[%clk 0:00:32]} 24.
Ng5 {[%clk 0:01:20.3]} 24... Bxg5 {[%clk 0:00:31.7]} 25. Rxg5 {[%clk 0:01:21.2]}
25... Qf6 {[%clk 0:00:15.4]} 26. Be3 {[%clk 0:01:18.4]} 26... b5 {[%clk
0:00:12.4]} 27. Bxd4 {[%clk 0:01:17.3]} 27... cxd4 {[%clk 0:00:12.3]} 28. Ne2
{[%clk 0:01:17.6]} 28... fxe4 {[%clk 0:00:10.7]} 29. dxe4 {[%clk 0:01:16.7]}
29... e5 {[%clk 0:00:10.4]} 30. f5 {[%clk 0:01:10.6]} 30... Ne7 {[%clk
0:00:07.5]} 31. Qh4 {[%clk 0:01:08.9]} 31... Rxg5 {[%clk 0:00:07.2]} 32. Rxg5
{[%clk 0:01:08.3]} 32... Qh6 {[%clk 0:00:05.2]} 33. Ng3 {[%clk 0:01:07.1]} 33...
Bxh5 {[%clk 0:00:05]} 34. Rxh5 {[%clk 0:01:05.2]} 34... Qc1+ {[%clk 0:00:04.5]}
35. Kg2 {[%clk 0:01:05.1]} 35... Qxc2+ {[%clk 0:00:04.7]} 36. Kh3 {[%clk
0:01:04.8]} 36... Kg8 {[%clk 0:00:02.4]} 37. Qxe7 {[%clk 0:01:03.7]} 1-0

[Event "*** Titled Tuesday Blitz"]
[Site "Chess.com"]
[Date "2021.03.02"]
[Round "11"]
[White "MITerryble"]
[Black "igorcadilhac"]
[Result "1-0"]
[WhiteElo "2889"]
[BlackElo "2453"]
[TimeControl "180+1"]
[EndTime "12:08:34 PST"]
[Termination "MITerryble won by resignation"]

1. Nf3 {[%clk 0:03:00.9]} 1... d5 {[%clk 0:02:59.5]} 2. e3 {[%clk 0:03:00.1]}
2... e6 {[%clk 0:02:59.8]} 3. c4 {[%clk 0:02:59.8]} 3... Nf6 {[%clk 0:02:59.1]}
4. b3 {[%clk 0:02:59.7]} 4... Be7 {[%clk 0:02:58.7]} 5. Bb2 {[%clk 0:02:59.7]}
5... O-O {[%clk 0:02:59.3]} 6. Qc2 {[%clk 0:02:59.5]} 6... c5 {[%clk 0:02:59.6]}
7. g4 {[%clk 0:02:52.7]} 7... Nc6 {[%clk 0:02:58]} 8. g5 {[%clk 0:02:41.6]} 8...
Ne4 {[%clk 0:02:57.9]} 9. h4 {[%clk 0:02:23.2]} 9... Nb4 {[%clk 0:02:56.9]} 10.
Qd1 {[%clk 0:02:20.2]} 10... dxc4 {[%clk 0:02:56.3]} 11. Bxc4 {[%clk 0:02:18.6]}
11... Nd3+ {[%clk 0:02:56.1]} 12. Bxd3 {[%clk 0:02:18.6]} 12... Qxd3 {[%clk
0:02:56.2]} 13. Qe2 {[%clk 0:02:01.5]} 13... Qd5 {[%clk 0:02:55.8]} 14. d3
{[%clk 0:01:56.4]} 14... Nd6 {[%clk 0:02:43.6]} 15. e4 {[%clk 0:01:54.3]} 15...
Qc6 {[%clk 0:02:37.8]} 16. h5 {[%clk 0:01:49.1]} 16... b6 {[%clk 0:02:16.8]} 17.
Nbd2 {[%clk 0:01:45.1]} 17... Ba6 {[%clk 0:02:15.4]} 18. Qe3 {[%clk 0:01:32.8]}
18... Qb5 {[%clk 0:01:31.5]} 19. Nc4 {[%clk 0:01:28.7]} 19... Nxc4 {[%clk
0:01:29.2]} 20. dxc4 {[%clk 0:01:27.1]} 20... Qc6 {[%clk 0:01:25.4]} 21. g6
{[%clk 0:01:23.8]} 21... Bb7 {[%clk 0:01:15.7]} 22. gxh7+ {[%clk 0:01:11.3]}
22... Kxh7 {[%clk 0:01:16.6]} 23. Rg1 {[%clk 0:01:07.8]} 23... Rg8 {[%clk
0:01:08.5]} 24. Rg4 {[%clk 0:00:59.4]} 24... f5 {[%clk 0:00:59.3]} 25. Ne5
{[%clk 0:00:58.9]} 25... Qc7 {[%clk 0:00:49.8]} 26. Rg6 {[%clk 0:00:53.3]} 26...
Bf6 {[%clk 0:00:41]} 27. f4 {[%clk 0:00:50.2]} 27... Bxe5 {[%clk 0:00:32.9]} 28.
Bxe5 {[%clk 0:00:49.3]} 28... Qc6 {[%clk 0:00:33.3]} 29. O-O-O {[%clk
0:00:45.6]} 29... Qxe4 {[%clk 0:00:17.2]} 30. Qg3 {[%clk 0:00:43]} 1-0

[Event "*** Titled Tuesday Blitz"]
[Site "Chess.com"]
[Date "2021.03.02"]
[Round "11"]
[White "Lovkov_Roman"]
[Black "eduardoperalta"]
[Result "0-1"]
[WhiteElo "2697"]
[BlackElo "2553"]
[TimeControl "180+1"]
[EndTime "12:08:35 PST"]
[Termination "eduardoperalta won by resignation"]

1. e4 {[%clk 0:03:00.9]} 1... c5 {[%clk 0:02:56.3]} 2. d4 {[%clk 0:03:00.5]}
2... cxd4 {[%clk 0:02:54.9]} 3. c3 {[%clk 0:03:01.1]} 3... d3 {[%clk 0:02:52.3]}
4. Bxd3 {[%clk 0:03:00.8]} 4... Nc6 {[%clk 0:02:52.4]} 5. c4 {[%clk 0:03:01.7]}
5... g6 {[%clk 0:02:52.5]} 6. Nf3 {[%clk 0:03:01.1]} 6... Bg7 {[%clk 0:02:52.9]}
7. O-O {[%clk 0:03:01.8]} 7... d6 {[%clk 0:02:53.2]} 8. h3 {[%clk 0:03:02.3]}
8... Nf6 {[%clk 0:02:53.6]} 9. Nc3 {[%clk 0:03:03]} 9... O-O {[%clk 0:02:52.5]}
10. Be3 {[%clk 0:03:03.6]} 10... b6 {[%clk 0:02:51.7]} 11. Rc1 {[%clk
0:03:03.8]} 11... Bb7 {[%clk 0:02:50.8]} 12. Qd2 {[%clk 0:03:04]} 12... Nd7
{[%clk 0:02:49]} 13. Nd5 {[%clk 0:02:56.9]} 13... Nde5 {[%clk 0:02:37.6]} 14.
Be2 {[%clk 0:02:51.1]} 14... e6 {[%clk 0:02:31.8]} 15. Nc3 {[%clk 0:02:47.8]}
15... Qe7 {[%clk 0:02:30.1]} 16. Nh2 {[%clk 0:02:43]} 16... Rfd8 {[%clk
0:02:27.3]} 17. Bg5 {[%clk 0:02:35.8]} 17... f6 {[%clk 0:02:26.6]} 18. Be3
{[%clk 0:02:36]} 18... Rd7 {[%clk 0:02:20.3]} 19. f4 {[%clk 0:02:22.6]} 19...
Nf7 {[%clk 0:02:19.6]} 20. f5 {[%clk 0:02:11.1]} 20... Nce5 {[%clk 0:01:53.8]}
21. fxe6 {[%clk 0:02:09.5]} 21... Qxe6 {[%clk 0:01:54.7]} 22. Nd5 {[%clk
0:02:10]} 22... Re8 {[%clk 0:01:49.7]} 23. Ng4 {[%clk 0:02:04.9]} 23... f5
{[%clk 0:01:42.5]} 24. exf5 {[%clk 0:01:58]} 24... gxf5 {[%clk 0:01:41.1]} 25.
Nh2 {[%clk 0:00:46.3]} 25... Ng6 {[%clk 0:01:39.3]} 26. Rf3 {[%clk 0:00:45.8]}
26... f4 {[%clk 0:01:34.4]} 27. Bd4 {[%clk 0:00:10.5]} 27... Bxd5 {[%clk
0:01:18.9]} 28. Bxg7 {[%clk 0:00:09.1]} 28... Bxf3 {[%clk 0:01:17.1]} 29. Bxf3
{[%clk 0:00:07.8]} 29... Kxg7 {[%clk 0:01:15.7]} 30. Bg4 {[%clk 0:00:08.7]}
30... Qe7 {[%clk 0:01:10.2]} 31. Qd4+ {[%clk 0:00:09.2]} 31... Nfe5 {[%clk
0:01:08.3]} 32. Bxd7 {[%clk 0:00:08.6]} 32... Qxd7 {[%clk 0:01:07.9]} 33. Rd1
{[%clk 0:00:09.5]} 33... Qc7 {[%clk 0:01:05.5]} 34. Kh1 {[%clk 0:00:08.8]} 34...
Qc5 {[%clk 0:01:04.9]} 35. Qd2 {[%clk 0:00:08.1]} 35... Nxc4 {[%clk 0:01:01]}
36. Qc2 {[%clk 0:00:08.2]} 36... Ne3 {[%clk 0:00:59]} 0-1

[Event "*** Titled Tuesday Blitz"]
[Site "Chess.com"]
[Date "2021.03.02"]
[Round "11"]
[White "SanQui14"]
[Black "ViktoriyaTarasova"]
[Result "0-1"]
[WhiteElo "2375"]
[BlackElo "2293"]
[TimeControl "180+1"]
[EndTime "12:08:35 PST"]
[Termination "ViktoriyaTarasova won by resignation"]

1. d4 {[%clk 0:02:59.6]} 1... Nf6 {[%clk 0:02:59.2]} 2. c4 {[%clk 0:02:59.8]}
2... e6 {[%clk 0:02:59.2]} 3. Nc3 {[%clk 0:03:00.2]} 3... Bb4 {[%clk 0:02:58.7]}
4. Qc2 {[%clk 0:03:00.6]} 4... d5 {[%clk 0:02:57.9]} 5. cxd5 {[%clk 0:03:00.3]}
5... exd5 {[%clk 0:02:58.1]} 6. Bg5 {[%clk 0:02:57.5]} 6... h6 {[%clk
0:02:57.9]} 7. Bxf6 {[%clk 0:02:57.3]} 7... Qxf6 {[%clk 0:02:56.4]} 8. e3 {[%clk
0:02:57.9]} 8... O-O {[%clk 0:02:54.9]} 9. Bd3 {[%clk 0:02:55.8]} 9... c6 {[%clk
0:02:53.4]} 10. Ne2 {[%clk 0:02:55.8]} 10... Nd7 {[%clk 0:02:42.6]} 11. a3
{[%clk 0:02:55.6]} 11... Bd6 {[%clk 0:02:42.1]} 12. O-O {[%clk 0:02:55.6]} 12...
Re8 {[%clk 0:02:42.5]} 13. b4 {[%clk 0:02:55]} 13... Nb6 {[%clk 0:02:40.5]} 14.
b5 {[%clk 0:02:53.9]} 14... Qh4 {[%clk 0:02:33]} 15. g3 {[%clk 0:02:52.6]} 15...
Qf6 {[%clk 0:02:28.9]} 16. bxc6 {[%clk 0:02:49.8]} 16... bxc6 {[%clk 0:02:28.5]}
17. Kg2 {[%clk 0:02:40.1]} 17... h5 {[%clk 0:02:16.1]} 18. Qd2 {[%clk 0:02:24]}
18... h4 {[%clk 0:02:14.4]} 19. f3 {[%clk 0:02:23.6]} 19... Qh6 {[%clk
0:02:01.4]} 20. Nf4 {[%clk 0:02:18.8]} 20... hxg3 {[%clk 0:01:49.8]} 21. hxg3
{[%clk 0:02:18.2]} 21... Bxf4 {[%clk 0:01:50.4]} 22. gxf4 {[%clk 0:02:03.5]}
22... Bh3+ {[%clk 0:01:45]} 23. Kg3 {[%clk 0:02:01.5]} 23... Bxf1 {[%clk
0:01:41.9]} 24. Rxf1 {[%clk 0:02:02.4]} 24... Nc4 {[%clk 0:01:30.2]} 25. Bxc4
{[%clk 0:02:00.7]} 25... dxc4 {[%clk 0:01:30.9]} 26. Ne4 {[%clk 0:01:59.4]}
26... Rab8 {[%clk 0:01:28.3]} 27. Nc5 {[%clk 0:01:46.7]} 27... Qg6+ {[%clk
0:01:27.8]} 28. Kf2 {[%clk 0:01:45.3]} 28... Qf6 {[%clk 0:01:21.6]} 29. Rc1
{[%clk 0:01:40.9]} 29... Qh4+ {[%clk 0:01:20.7]} 30. Kg2 {[%clk 0:01:37.3]}
30... Rb5 {[%clk 0:01:10.6]} 31. Rxc4 {[%clk 0:01:35.3]} 31... Rb1 {[%clk
0:01:05.6]} 32. Rc1 {[%clk 0:01:35.4]} 32... Rxc1 {[%clk 0:01:02.8]} 33. Qxc1
{[%clk 0:01:35.5]} 33... Qe7 {[%clk 0:01:03]} 34. Kf2 {[%clk 0:01:28]} 34... Rb8
{[%clk 0:00:59.7]} 35. Qc3 {[%clk 0:01:20.9]} 35... Qh4+ {[%clk 0:00:54]} 36.
Ke2 {[%clk 0:01:19.2]} 36... Qh2+ {[%clk 0:00:53.1]} 37. Kd3 {[%clk 0:01:18.9]}
37... Qh1 {[%clk 0:00:52.2]} 38. Ne4 {[%clk 0:00:58.1]} 38... Qxf3 {[%clk
0:00:46.7]} 39. Qxc6 {[%clk 0:00:57.8]} 39... Qf1+ {[%clk 0:00:37.8]} 40. Kc2
{[%clk 0:00:39.4]} 40... Qb1+ {[%clk 0:00:35.1]} 41. Kd2 {[%clk 0:00:37.6]}
41... Rb2+ {[%clk 0:00:33.5]} 0-1

[Event "*** Titled Tuesday Blitz"]
[Site "Chess.com"]
[Date "2021.03.02"]
[Round "11"]
[White "Kostukov_Alex"]
[Black "volunteers1998"]
[Result "1-0"]
[WhiteElo "2322"]
[BlackElo "2178"]
[TimeControl "180+1"]
[EndTime "12:08:35 PST"]
[Termination "Kostukov_Alex won on time"]

1. g3 {[%clk 0:03:00.9]} 1... f5 {[%clk 0:02:57.9]} 2. Bg2 {[%clk 0:02:57.3]}
2... Nf6 {[%clk 0:02:56.5]} 3. d4 {[%clk 0:02:57.3]} 3... g6 {[%clk 0:02:53]} 4.
c4 {[%clk 0:02:57.7]} 4... Bg7 {[%clk 0:02:50.2]} 5. Nc3 {[%clk 0:02:57.7]} 5...
O-O {[%clk 0:02:47.7]} 6. Nf3 {[%clk 0:02:57.8]} 6... d6 {[%clk 0:02:46.1]} 7.
O-O {[%clk 0:02:55.6]} 7... Nc6 {[%clk 0:02:43.6]} 8. d5 {[%clk 0:02:54.6]} 8...
Ne5 {[%clk 0:02:42.6]} 9. Nxe5 {[%clk 0:02:53.7]} 9... dxe5 {[%clk 0:02:42.7]}
10. c5 {[%clk 0:02:53.9]} 10... e4 {[%clk 0:02:35]} 11. Qb3 {[%clk 0:02:51.6]}
11... Kh8 {[%clk 0:02:26]} 12. Rd1 {[%clk 0:02:50]} 12... a6 {[%clk 0:02:23.2]}
13. Bf4 {[%clk 0:02:32.2]} 13... Nh5 {[%clk 0:02:14]} 14. Be3 {[%clk 0:02:31.4]}
14... Qe8 {[%clk 0:02:04.2]} 15. d6 {[%clk 0:02:18.5]} 15... exd6 {[%clk
0:02:01.2]} 16. cxd6 {[%clk 0:02:18.5]} 16... cxd6 {[%clk 0:01:58.8]} 17. Rxd6
{[%clk 0:02:17.4]} 17... Rf6 {[%clk 0:01:50.4]} 18. Rad1 {[%clk 0:02:12.6]}
18... Rxd6 {[%clk 0:01:47.7]} 19. Rxd6 {[%clk 0:02:12.8]} 19... Be5 {[%clk
0:01:33.8]} 20. Bd4 {[%clk 0:02:10.1]} 20... Bxd4 {[%clk 0:01:30.2]} 21. Rxd4
{[%clk 0:02:09]} 21... Be6 {[%clk 0:01:27.9]} 22. Qxb7 {[%clk 0:02:06.6]} 22...
Rb8 {[%clk 0:01:27.5]} 23. Qc7 {[%clk 0:02:04.9]} 23... Ng7 {[%clk 0:01:21.9]}
24. Qe5 {[%clk 0:01:29.5]} 24... Rxb2 {[%clk 0:01:13.8]} 25. h4 {[%clk
0:01:25.8]} 25... Rb8 {[%clk 0:00:56.4]} 26. Rd6 {[%clk 0:01:18.1]} 26... Bg8
{[%clk 0:00:46.1]} 27. Qd4 {[%clk 0:01:15]} 27... a5 {[%clk 0:00:41.8]} 28. h5
{[%clk 0:01:13.3]} 28... gxh5 {[%clk 0:00:38.2]} 29. Bh3 {[%clk 0:01:08.6]}
29... Qe7 {[%clk 0:00:34.3]} 30. Rd7 {[%clk 0:01:03.4]} 30... Qf8 {[%clk
0:00:25]} 31. Bxf5 {[%clk 0:01:02.2]} 31... e3 {[%clk 0:00:20.6]} 32. fxe3
{[%clk 0:00:54.9]} 32... Rb4 {[%clk 0:00:17.1]} 33. Qe5 {[%clk 0:00:54.5]} 33...
h4 {[%clk 0:00:11.4]} 34. g4 {[%clk 0:00:53]} 34... h3 {[%clk 0:00:06]} 35. Ne4
{[%clk 0:00:52.4]} 35... Rb1+ {[%clk 0:00:01.7]} 36. Kh2 {[%clk 0:00:52.2]} 1-0